[Event "Titled Tuesday Blitz June 27 Early 2023"]
[White "Ng, Clive"]
[Black "Kielinkei"]
[WhiteFideId "3214869"]
[WhiteElo "2331"]
[BlackElo "2458"]
[Result "1-0"]
[Round "11"]
[TimeControl "180+2"]
[Date "2023.06.27"]
[WhiteClock "0:00:18"]
[BlackClock "0:00:02"]
[Board "105"]

1. e4 {[%clk 0:02:55]}  d6 {[%clk 0:02:59]} 2. d4 {[%clk 0:02:53]}  Nf6 {[%clk 0:02:59]} 3. Nc3 {[%clk 0:02:53]}  Nbd7 {[%clk 0:02:59]} 4. Be3 {[%clk 0:02:52]}  e5 {[%clk 0:03:00]} 5. f3 {[%clk 0:02:51]}  c6 {[%clk 0:02:58]} 6. Qd2 {[%clk 0:02:51]}  b5 {[%clk 0:02:57]} 7. g4 {[%clk 0:02:50]}  b4 {[%clk 0:02:53]} 8. Nd1 {[%clk 0:02:49]}  exd4 {[%clk 0:02:48]} 9. Bxd4 {[%clk 0:02:49]}  c5 {[%clk 0:02:44]} 10. Be3 {[%clk 0:02:49]}  h6 {[%clk 0:02:40]} 11. h4 {[%clk 0:02:48]}  Be7 {[%clk 0:02:38]} 12. Nf2 {[%clk 0:02:48]}  Ne5 {[%clk 0:02:33]} 13. O-O-O {[%clk 0:02:38]}  a5 {[%clk 0:02:32]} 14. Be2 {[%clk 0:02:21]}  a4 {[%clk 0:02:27]} 15. Ngh3 {[%clk 0:02:21]}  b3 {[%clk 0:02:23]} 16. cxb3 {[%clk 0:02:18]}  axb3 {[%clk 0:02:22]} 17. a3 {[%clk 0:02:19]}  Ba6 {[%clk 0:02:17]} 18. g5 {[%clk 0:02:12]}  Nfd7 {[%clk 0:01:54]} 19. gxh6 {[%clk 0:02:09]}  gxh6 {[%clk 0:01:44]} 20. Nf4 {[%clk 0:01:37]}  Nb6 {[%clk 0:01:35]} 21. Nh5 {[%clk 0:01:11]}  Nbc4 {[%clk 0:01:26]} 22. Qc3 {[%clk 0:01:01]}  Nxe3 {[%clk 0:01:17]} 23. Qxe3 {[%clk 0:01:02]}  Qa5 {[%clk 0:01:10]} 24. Ng7+ {[%clk 0:00:49]}  Kf8 {[%clk 0:01:09]} 25. Nf5 {[%clk 0:00:49]}  Rd8 {[%clk 0:00:46]} 26. f4 {[%clk 0:00:37]}  Nc4 {[%clk 0:00:42]} 27. Bxc4 {[%clk 0:00:34]}  Bxc4 {[%clk 0:00:43]} 28. e5 {[%clk 0:00:22]}  d5 {[%clk 0:00:40]} 29. Nxe7 {[%clk 0:00:20]}  Kxe7 {[%clk 0:00:39]} 30. f5 {[%clk 0:00:21]}  d4 {[%clk 0:00:33]} 31. Qe4 {[%clk 0:00:19]}  Bd5 {[%clk 0:00:31]} 32. f6+ {[%clk 0:00:19]}  Kf8 {[%clk 0:00:26]} 33. Qg4 {[%clk 0:00:19]}  Rg8 {[%clk 0:00:17]} 34. Qh5 {[%clk 0:00:19]}  Ke8 {[%clk 0:00:17]} 35. Rhg1 {[%clk 0:00:19]}  Kd7 {[%clk 0:00:16]} 36. Qxh6 {[%clk 0:00:18]}  Kc7 {[%clk 0:00:15]} 37. Rg7 {[%clk 0:00:18]}  Rge8 {[%clk 0:00:12]} 38. Qf4 {[%clk 0:00:18]}  Kb7 {[%clk 0:00:11]} 39. Nd3 {[%clk 0:00:18]}  c4 {[%clk 0:00:10]} 40. Nb4 {[%clk 0:00:17]}  c3 {[%clk 0:00:10]} 41. Nxd5 {[%clk 0:00:17]}  cxb2+ {[%clk 0:00:10]} 42. Kxb2 {[%clk 0:00:17]}  Rxd5 {[%clk 0:00:09]} 43. Qd2 {[%clk 0:00:17]}  Qc7 {[%clk 0:00:07]} 44. Qb4+ {[%clk 0:00:16]}  Kc8 {[%clk 0:00:04]} 45. Rc1 {[%clk 0:00:16]}  d3 {[%clk 0:00:01]} 46. Rxc7+ {[%clk 0:00:16]}  Kxc7 {[%clk 0:00:02]} 47. Qc4+ {[%clk 0:00:17]}  Kb6 {[%clk 0:00:02]} 48. Qxd5 {[%clk 0:00:17]}  Ka6 {[%clk 0:00:02]} 49. Qxd3+ {[%clk 0:00:17]}  Ka7 {[%clk 0:00:02]} 50. Rxf7+ {[%clk 0:00:17]}  Ka8 {[%clk 0:00:02]} 51. Qd5+ {[%clk 0:00:17]}  Kb8 {[%clk 0:00:02]} 52. Qb7# {[%clk 0:00:18]} 1-0


[Site "https://www.chess.com"]

[Event "Titled Tuesday Blitz June 27 Early 2023"]
[White "Nilssen, Ellen Fredericia"]
[Black "Buscar, Michael"]
[WhiteFideId "1441230"]
[BlackFideId "2603616"]
[WhiteElo "2242"]
[BlackElo "2383"]
[Result "0-1"]
[Round "11"]
[TimeControl "180+2"]
[Date "2023.06.27"]
[WhiteClock "0:00:01"]
[BlackClock "0:00:22"]
[Board "109"]

1. Nf3 {[%clk 0:03:00]}  Nf6 {[%clk 0:02:37]} 2. b3 {[%clk 0:03:00]}  b6 {[%clk 0:02:37]} 3. Bb2 {[%clk 0:03:00]}  Bb7 {[%clk 0:02:38]} 4. e3 {[%clk 0:03:00]}  e6 {[%clk 0:02:39]} 5. c4 {[%clk 0:03:00]}  c5 {[%clk 0:02:38]} 6. Be2 {[%clk 0:03:00]}  Be7 {[%clk 0:02:38]} 7. O-O {[%clk 0:03:00]}  O-O {[%clk 0:02:39]} 8. Nc3 {[%clk 0:03:00]}  d6 {[%clk 0:02:39]} 9. Rc1 {[%clk 0:02:59]}  Nbd7 {[%clk 0:02:39]} 10. Qc2 {[%clk 0:02:59]}  a6 {[%clk 0:02:38]} 11. Rfd1 {[%clk 0:02:59]}  Qc7 {[%clk 0:02:38]} 12. d4 {[%clk 0:02:58]}  cxd4 {[%clk 0:02:38]} 13. Nxd4 {[%clk 0:02:57]}  Rac8 {[%clk 0:02:37]} 14. Bf3 {[%clk 0:02:56]}  Ne5 {[%clk 0:02:32]} 15. Bxb7 {[%clk 0:02:54]}  Qxb7 {[%clk 0:02:33]} 16. Qe2 {[%clk 0:02:52]}  Rfd8 {[%clk 0:02:32]} 17. f3 {[%clk 0:02:42]}  Ng6 {[%clk 0:02:29]} 18. Rd2 {[%clk 0:02:29]}  d5 {[%clk 0:02:17]} 19. cxd5 {[%clk 0:02:25]}  Nxd5 {[%clk 0:02:17]} 20. Nxd5 {[%clk 0:02:24]}  Rxc1+ {[%clk 0:02:16]} 21. Bxc1 {[%clk 0:02:25]}  Rxd5 {[%clk 0:02:10]} 22. Rc2 {[%clk 0:02:23]}  Bc5 {[%clk 0:02:09]} 23. Bb2 {[%clk 0:02:17]}  a5 {[%clk 0:01:58]} 24. Qb5 {[%clk 0:02:07]}  Qd7 {[%clk 0:01:52]} 25. Qxd7 {[%clk 0:01:45]}  Rxd7 {[%clk 0:01:50]} 26. Kf2 {[%clk 0:01:38]}  Ne5 {[%clk 0:01:36]} 27. Ke2 {[%clk 0:01:35]}  Rd5 {[%clk 0:01:26]} 28. e4 {[%clk 0:01:24]}  Rd8 {[%clk 0:00:56]} 29. Nxe6 {[%clk 0:01:20]}  fxe6 {[%clk 0:00:56]} 30. Bxe5 {[%clk 0:01:20]}  Kf7 {[%clk 0:00:56]} 31. Rd2 {[%clk 0:01:15]}  Rxd2+ {[%clk 0:00:51]} 32. Kxd2 {[%clk 0:01:16]}  g6 {[%clk 0:00:51]} 33. Kd3 {[%clk 0:01:16]}  Ke7 {[%clk 0:00:51]} 34. Kc4 {[%clk 0:01:16]}  Kd7 {[%clk 0:00:52]} 35. Kb5 {[%clk 0:01:16]}  Bg1 {[%clk 0:00:52]} 36. Bb8 {[%clk 0:00:52]}  Bf2 {[%clk 0:00:51]} 37. Ba7 {[%clk 0:00:50]}  Kc7 {[%clk 0:00:51]} 38. Ka6 {[%clk 0:00:48]}  Bg1 {[%clk 0:00:48]} 39. a3 {[%clk 0:00:31]}  g5 {[%clk 0:00:43]} 40. g4 {[%clk 0:00:28]}  h6 {[%clk 0:00:38]} 41. b4 {[%clk 0:00:22]}  axb4 {[%clk 0:00:38]} 42. axb4 {[%clk 0:00:22]}  Be3 {[%clk 0:00:33]} 43. e5 {[%clk 0:00:14]}  Bd4 {[%clk 0:00:30]} 44. Kb5 {[%clk 0:00:05]}  Kb7 {[%clk 0:00:29]} 45. Kc4 {[%clk 0:00:03]}  Bxe5 {[%clk 0:00:26]} 46. Bxb6 {[%clk 0:00:03]}  Kxb6 {[%clk 0:00:26]} 47. Kd3 {[%clk 0:00:04]}  Bxh2 {[%clk 0:00:24]} 48. Ke4 {[%clk 0:00:01]}  Kb5 {[%clk 0:00:22]} 0-1


[Site "https://www.chess.com"]

[Event "Titled Tuesday Blitz June 27 Early 2023"]
[White "Vaglio Munoz, Jaime"]
[Black "BenchGM"]
[WhiteFideId "6500145"]
[WhiteElo "2288"]
[BlackElo "2373"]
[Result "0-1"]
[Round "11"]
[TimeControl "180+2"]
[Date "2023.06.27"]
[WhiteClock "0:01:44"]
[BlackClock "0:00:41"]
[Board "113"]

1. e4 {[%clk 0:03:00]}  e6 {[%clk 0:02:59]} 2. b3 {[%clk 0:02:58]}  d5 {[%clk 0:02:59]} 3. Bb2 {[%clk 0:02:57]}  Nf6 {[%clk 0:02:57]} 4. e5 {[%clk 0:02:56]}  Nfd7 {[%clk 0:02:57]} 5. f4 {[%clk 0:02:50]}  c5 {[%clk 0:02:52]} 6. Nf3 {[%clk 0:02:50]}  Nc6 {[%clk 0:02:50]} 7. a3 {[%clk 0:02:49]}  f6 {[%clk 0:02:48]} 8. Qe2 {[%clk 0:02:47]}  fxe5 {[%clk 0:02:42]} 9. fxe5 {[%clk 0:02:46]}  Be7 {[%clk 0:02:39]} 10. Nc3 {[%clk 0:02:40]}  O-O {[%clk 0:02:35]} 11. O-O-O {[%clk 0:02:39]}  a6 {[%clk 0:02:18]} 12. h4 {[%clk 0:02:36]}  b5 {[%clk 0:02:13]} 13. Kb1 {[%clk 0:02:34]}  b4 {[%clk 0:02:08]} 14. Na4 {[%clk 0:02:31]}  bxa3 {[%clk 0:01:52]} 15. Bxa3 {[%clk 0:02:32]}  c4 {[%clk 0:01:52]} 16. Bb2 {[%clk 0:02:24]}  cxb3 {[%clk 0:01:49]} 17. cxb3 {[%clk 0:02:25]}  Rb8 {[%clk 0:01:40]} 18. Qe3 {[%clk 0:02:11]}  Na5 {[%clk 0:01:17]} 19. Ng5 {[%clk 0:02:00]}  Nb6 {[%clk 0:01:07]} 20. Bd3 {[%clk 0:01:57]}  Nxa4 {[%clk 0:00:50]} 21. Bxh7+ {[%clk 0:01:48]}  Kh8 {[%clk 0:00:49]} 22. Qf3 {[%clk 0:01:45]}  Rxf3 {[%clk 0:00:48]} 23. gxf3 {[%clk 0:01:44]}  Rxb3 {[%clk 0:00:44]} 24. Nf7+ {[%clk 0:01:44]}  Kxh7 {[%clk 0:00:42]} 25. Nxd8 {[%clk 0:01:45]}  Rxb2+ {[%clk 0:00:41]} 26. Kc1 {[%clk 0:01:44]}  Nb3# {[%clk 0:00:41]} 0-1


[Site "https://www.chess.com"]

[Event "Titled Tuesday Blitz June 27 Early 2023"]
[White "Biriukov, Ilja"]
[Black "Petrova, Irina"]
[WhiteFideId "4113373"]
[BlackFideId "14124122"]
[WhiteElo "2281"]
[BlackElo "2371"]
[Result "1-0"]
[Round "11"]
[TimeControl "180+2"]
[Date "2023.06.27"]
[WhiteClock "0:00:18"]
[BlackClock "0:00:10"]
[Board "114"]

1. c4 {[%clk 0:03:00]}  d6 {[%clk 0:03:00]} 2. Nc3 {[%clk 0:02:59]}  e5 {[%clk 0:03:01]} 3. g3 {[%clk 0:02:58]}  Nc6 {[%clk 0:03:02]} 4. Bg2 {[%clk 0:02:58]}  f5 {[%clk 0:03:02]} 5. d3 {[%clk 0:02:58]}  Nf6 {[%clk 0:03:03]} 6. e3 {[%clk 0:02:58]}  g6 {[%clk 0:03:03]} 7. Nge2 {[%clk 0:02:59]}  Bg7 {[%clk 0:03:04]} 8. O-O {[%clk 0:02:59]}  O-O {[%clk 0:03:04]} 9. Rb1 {[%clk 0:02:59]}  Be6 {[%clk 0:03:05]} 10. Nd5 {[%clk 0:02:56]}  Qd7 {[%clk 0:03:04]} 11. b4 {[%clk 0:02:52]}  Rae8 {[%clk 0:03:04]} 12. b5 {[%clk 0:02:48]}  Nd8 {[%clk 0:03:04]} 13. a4 {[%clk 0:02:44]}  Kh8 {[%clk 0:03:01]} 14. Qc2 {[%clk 0:02:29]}  Nh5 {[%clk 0:03:01]} 15. f4 {[%clk 0:02:27]}  c6 {[%clk 0:03:00]} 16. bxc6 {[%clk 0:02:21]}  bxc6 {[%clk 0:03:01]} 17. Ndc3 {[%clk 0:02:17]}  d5 {[%clk 0:02:55]} 18. cxd5 {[%clk 0:02:01]}  cxd5 {[%clk 0:02:56]} 19. d4 {[%clk 0:01:52]}  e4 {[%clk 0:02:51]} 20. Ba3 {[%clk 0:01:47]}  Rf7 {[%clk 0:02:48]} 21. Nb5 {[%clk 0:01:36]}  Nb7 {[%clk 0:02:43]} 22. Rfc1 {[%clk 0:01:32]}  Na5 {[%clk 0:02:36]} 23. Nd6 {[%clk 0:01:28]}  Nc4 {[%clk 0:02:32]} 24. Nxf7+ {[%clk 0:01:25]}  Bxf7 {[%clk 0:02:32]} 25. Qc3 {[%clk 0:01:11]}  Qxa4 {[%clk 0:02:22]} 26. Bc5 {[%clk 0:01:09]}  Nf6 {[%clk 0:02:19]} 27. Ra1 {[%clk 0:01:08]}  Qb5 {[%clk 0:02:11]} 28. Rcb1 {[%clk 0:01:06]}  Qc6 {[%clk 0:01:50]} 29. Rxa7 {[%clk 0:01:04]}  Be6 {[%clk 0:01:48]} 30. h3 {[%clk 0:01:02]}  Nd7 {[%clk 0:01:45]} 31. Ba3 {[%clk 0:00:44]}  Ndb6 {[%clk 0:01:42]} 32. Kh2 {[%clk 0:00:34]}  Ra8 {[%clk 0:01:37]} 33. Rxa8+ {[%clk 0:00:33]}  Qxa8 {[%clk 0:01:37]} 34. Bc5 {[%clk 0:00:33]}  Nd7 {[%clk 0:01:27]} 35. Qb3 {[%clk 0:00:31]}  h6 {[%clk 0:01:25]} 36. Qb7 {[%clk 0:00:28]}  Qxb7 {[%clk 0:01:19]} 37. Rxb7 {[%clk 0:00:27]}  Nxe3 {[%clk 0:01:18]} 38. Nc3 {[%clk 0:00:24]}  Nxc5 {[%clk 0:01:15]} 39. dxc5 {[%clk 0:00:24]}  Bxc3 {[%clk 0:01:16]} 40. c6 {[%clk 0:00:24]}  d4 {[%clk 0:01:12]} 41. c7 {[%clk 0:00:24]}  d3 {[%clk 0:01:06]} 42. Rb8+ {[%clk 0:00:22]}  Kg7 {[%clk 0:01:06]} 43. Re8 {[%clk 0:00:21]}  d2 {[%clk 0:00:50]} 44. Rxe6 {[%clk 0:00:20]}  d1=Q {[%clk 0:00:47]} 45. c8=Q {[%clk 0:00:21]}  Bf6 {[%clk 0:00:13]} 46. Qc7+ {[%clk 0:00:20]}  Kg8 {[%clk 0:00:10]} 47. Re8# {[%clk 0:00:18]} 1-0


[Site "https://www.chess.com"]

[Event "Titled Tuesday Blitz June 27 Early 2023"]
[White "Georg, Heinz"]
[Black "Tarnowska, Aleksandra"]
[WhiteFideId "4607295"]
[BlackFideId "1180967"]
[WhiteElo "2267"]
[BlackElo "2151"]
[Result "1-0"]
[Round "11"]
[TimeControl "180+2"]
[Date "2023.06.27"]
[WhiteClock "0:00:24"]
[BlackClock "0:00:01"]
[Board "120"]

1. e4 {[%clk 0:03:00]}  c5 {[%clk 0:02:58]} 2. Nf3 {[%clk 0:03:00]}  e6 {[%clk 0:02:59]} 3. b3 {[%clk 0:03:00]}  d5 {[%clk 0:02:57]} 4. exd5 {[%clk 0:02:59]}  Qxd5 {[%clk 0:02:57]} 5. Nc3 {[%clk 0:02:58]}  Qd6 {[%clk 0:02:55]} 6. Bb5+ {[%clk 0:02:55]}  Bd7 {[%clk 0:02:55]} 7. O-O {[%clk 0:02:54]}  Nf6 {[%clk 0:02:53]} 8. d4 {[%clk 0:02:53]}  cxd4 {[%clk 0:02:49]} 9. Qxd4 {[%clk 0:02:50]}  Qxd4 {[%clk 0:02:47]} 10. Nxd4 {[%clk 0:02:50]}  a6 {[%clk 0:02:47]} 11. Bxd7+ {[%clk 0:02:48]}  Nbxd7 {[%clk 0:02:48]} 12. Re1 {[%clk 0:02:43]}  Bb4 {[%clk 0:02:44]} 13. Bd2 {[%clk 0:02:43]}  O-O {[%clk 0:02:32]} 14. a3 {[%clk 0:02:42]}  Bc5 {[%clk 0:02:31]} 15. Nf3 {[%clk 0:02:33]}  Rfd8 {[%clk 0:02:28]} 16. b4 {[%clk 0:02:28]}  Ba7 {[%clk 0:02:24]} 17. Bg5 {[%clk 0:02:24]}  h6 {[%clk 0:02:23]} 18. Bh4 {[%clk 0:02:22]}  Rac8 {[%clk 0:02:17]} 19. Ne4 {[%clk 0:02:19]}  Rxc2 {[%clk 0:01:11]} 20. Rad1 {[%clk 0:02:13]}  Rdc8 {[%clk 0:00:24]} 21. Nd6 {[%clk 0:02:10]}  R8c3 {[%clk 0:00:17]} 22. Nxb7 {[%clk 0:02:04]}  Rxa3 {[%clk 0:00:16]} 23. Ne5 {[%clk 0:01:24]}  Nxe5 {[%clk 0:00:12]} 24. Rxe5 {[%clk 0:01:24]}  Raa2 {[%clk 0:00:12]} 25. Nc5 {[%clk 0:01:14]}  g5 {[%clk 0:00:06]} 26. Bg3 {[%clk 0:01:14]}  Nh5 {[%clk 0:00:06]} 27. Rf1 {[%clk 0:00:52]}  Nxg3 {[%clk 0:00:05]} 28. hxg3 {[%clk 0:00:53]}  a5 {[%clk 0:00:06]} 29. Nd3 {[%clk 0:00:46]}  Ra3 {[%clk 0:00:04]} 30. Rd1 {[%clk 0:00:42]}  axb4 {[%clk 0:00:03]} 31. Nxb4 {[%clk 0:00:40]}  Rxf2 {[%clk 0:00:03]} 32. Kh2 {[%clk 0:00:40]}  Rb3 {[%clk 0:00:02]} 33. Nc6 {[%clk 0:00:39]}  Rbb2 {[%clk 0:00:01]} 34. Nxa7 {[%clk 0:00:36]}  Rxg2+ {[%clk 0:00:02]} 35. Kh3 {[%clk 0:00:36]}  Rh2+ {[%clk 0:00:02]} 36. Kg4 {[%clk 0:00:36]}  f5+ {[%clk 0:00:02]} 37. Kf3 {[%clk 0:00:34]}  Rhf2+ {[%clk 0:00:02]} 38. Ke3 {[%clk 0:00:34]}  Rfe2+ {[%clk 0:00:01]} 39. Kd4 {[%clk 0:00:34]}  Rb4+ {[%clk 0:00:02]} 40. Kc5 {[%clk 0:00:33]}  Ree4 {[%clk 0:00:01]} 41. Rxe4 {[%clk 0:00:32]}  Rxe4 {[%clk 0:00:01]} 42. Nc6 {[%clk 0:00:31]}  Re2 {[%clk 0:00:01]} 43. Kd6 {[%clk 0:00:29]}  e5 {[%clk 0:00:01]} 44. Ke6 {[%clk 0:00:29]}  f4 {[%clk 0:00:02]} 45. Kf6 {[%clk 0:00:27]}  fxg3 {[%clk 0:00:01]} 46. Rd8+ {[%clk 0:00:25]}  Kh7 {[%clk 0:00:02]} 47. Rd7+ {[%clk 0:00:25]}  Kg8 {[%clk 0:00:02]} 48. Kg6 {[%clk 0:00:24]}  Rf2 {[%clk 0:00:02]} 49. Ne7+ {[%clk 0:00:25]}  Kf8 {[%clk 0:00:02]} 50. Nf5 {[%clk 0:00:24]}  g2 {[%clk 0:00:01]} 51. Rd8# {[%clk 0:00:24]} 1-0


[Site "https://www.chess.com"]

[Event "Titled Tuesday Blitz June 27 Early 2023"]
[White "deloewre"]
[Black "Ajavon, Anthony Obieni"]
[BlackFideId "12600784"]
[WhiteElo "2124"]
[BlackElo "2007"]
[Result "1-0"]
[Round "11"]
[TimeControl "180+2"]
[Date "2023.06.27"]
[WhiteClock "0:01:14"]
[BlackClock "0:00:00"]
[Board "122"]

1. d4 {[%clk 0:03:00]}  Nf6 {[%clk 0:02:59]} 2. c4 {[%clk 0:02:59]}  g6 {[%clk 0:03:00]} 3. Nf3 {[%clk 0:02:57]}  Bg7 {[%clk 0:03:00]} 4. g3 {[%clk 0:02:57]}  d6 {[%clk 0:03:01]} 5. Bg2 {[%clk 0:02:56]}  O-O {[%clk 0:03:02]} 6. O-O {[%clk 0:02:56]}  Nc6 {[%clk 0:03:03]} 7. d5 {[%clk 0:02:53]}  Ne5 {[%clk 0:03:02]} 8. Nxe5 {[%clk 0:02:50]}  dxe5 {[%clk 0:03:03]} 9. e4 {[%clk 0:02:42]}  e6 {[%clk 0:02:55]} 10. Nc3 {[%clk 0:02:41]}  exd5 {[%clk 0:02:53]} 11. cxd5 {[%clk 0:02:40]}  h6 {[%clk 0:02:43]} 12. h3 {[%clk 0:02:38]}  Ne8 {[%clk 0:02:41]} 13. b3 {[%clk 0:02:34]}  Nd6 {[%clk 0:02:41]} 14. Ba3 {[%clk 0:02:29]}  f5 {[%clk 0:02:17]} 15. exf5 {[%clk 0:02:27]}  gxf5 {[%clk 0:02:13]} 16. Qe2 {[%clk 0:02:25]}  Qf6 {[%clk 0:01:28]} 17. Nb5 {[%clk 0:02:19]}  Nxb5 {[%clk 0:01:22]} 18. Qxb5 {[%clk 0:02:16]}  Rd8 {[%clk 0:01:06]} 19. Rac1 {[%clk 0:02:07]}  Qb6 {[%clk 0:00:32]} 20. Qc5 {[%clk 0:01:53]}  Qxc5 {[%clk 0:00:20]} 21. Bxc5 {[%clk 0:01:52]}  Bd7 {[%clk 0:00:15]} 22. Be3 {[%clk 0:01:46]}  Rac8 {[%clk 0:00:12]} 23. Rfd1 {[%clk 0:01:40]}  c6 {[%clk 0:00:11]} 24. Bxa7 {[%clk 0:01:33]}  Ra8 {[%clk 0:00:08]} 25. Bb6 {[%clk 0:01:32]}  Rdc8 {[%clk 0:00:06]} 26. a4 {[%clk 0:01:27]}  e4 {[%clk 0:00:04]} 27. d6 {[%clk 0:01:18]}  Re8 {[%clk 0:00:02]} 28. Bf1 {[%clk 0:01:15]}  Kh7 {[%clk 0:00:00]} 29. Bc4 {[%clk 0:01:14]} 1-0


[Site "https://www.chess.com"]

[Event "Titled Tuesday Blitz June 27 Early 2023"]
[White "Winkels, Marcel"]
[Black "Skiadopoulos, Nikolaos"]
[WhiteFideId "1003887"]
[BlackFideId "4200772"]
[WhiteElo "2105"]
[BlackElo "1924"]
[Result "0-1"]
[Round "11"]
[TimeControl "180+2"]
[Date "2023.06.27"]
[WhiteClock "0:00:00"]
[BlackClock "0:01:04"]
[Board "124"]

1. e4 {[%clk 0:03:00]}  c5 {[%clk 0:02:59]} 2. Nf3 {[%clk 0:03:00]}  Nc6 {[%clk 0:02:59]} 3. Bb5 {[%clk 0:02:57]}  Na5 {[%clk 0:02:58]} 4. O-O {[%clk 0:02:56]}  a6 {[%clk 0:02:57]} 5. Be2 {[%clk 0:02:55]}  b5 {[%clk 0:02:57]} 6. d4 {[%clk 0:02:54]}  cxd4 {[%clk 0:02:57]} 7. Nxd4 {[%clk 0:02:55]}  e5 {[%clk 0:02:57]} 8. Nf5 {[%clk 0:02:54]}  d5 {[%clk 0:02:56]} 9. Nc3 {[%clk 0:02:42]}  d4 {[%clk 0:02:49]} 10. Nd5 {[%clk 0:02:40]}  Bxf5 {[%clk 0:02:48]} 11. Bf3 {[%clk 0:02:32]}  Be6 {[%clk 0:02:46]} 12. Bd2 {[%clk 0:02:31]}  Nf6 {[%clk 0:02:43]} 13. c3 {[%clk 0:02:23]}  Nc4 {[%clk 0:02:38]} 14. Bg5 {[%clk 0:02:21]}  Be7 {[%clk 0:02:37]} 15. Bxf6 {[%clk 0:02:12]}  Bxf6 {[%clk 0:02:32]} 16. Nxf6+ {[%clk 0:02:12]}  Qxf6 {[%clk 0:02:32]} 17. cxd4 {[%clk 0:02:12]}  exd4 {[%clk 0:02:31]} 18. e5 {[%clk 0:02:12]}  Qd8 {[%clk 0:02:26]} 19. Bxa8 {[%clk 0:02:11]}  Qxa8 {[%clk 0:02:25]} 20. Qxd4 {[%clk 0:02:09]}  O-O {[%clk 0:02:22]} 21. b3 {[%clk 0:02:08]}  Rd8 {[%clk 0:02:15]} 22. Qc3 {[%clk 0:02:03]}  Nb6 {[%clk 0:02:05]} 23. Rfd1 {[%clk 0:01:55]}  Nd5 {[%clk 0:02:04]} 24. Qd4 {[%clk 0:01:49]}  Rc8 {[%clk 0:01:59]} 25. Rac1 {[%clk 0:01:47]}  Rxc1 {[%clk 0:01:57]} 26. Rxc1 {[%clk 0:01:46]}  g6 {[%clk 0:01:55]} 27. Rc5 {[%clk 0:01:36]}  Kg7 {[%clk 0:01:51]} 28. g3 {[%clk 0:01:35]}  Ne7 {[%clk 0:01:48]} 29. Rc2 {[%clk 0:01:22]}  Nf5 {[%clk 0:01:42]} 30. Qa1 {[%clk 0:01:14]}  h5 {[%clk 0:01:41]} 31. Rd2 {[%clk 0:01:09]}  Qe4 {[%clk 0:01:40]} 32. h4 {[%clk 0:00:56]}  Kh7 {[%clk 0:01:29]} 33. Qc1 {[%clk 0:00:39]}  Qxe5 {[%clk 0:01:28]} 34. Rd8 {[%clk 0:00:28]}  Nd4 {[%clk 0:01:20]} 35. Qd1 {[%clk 0:00:14]}  Ne2+ {[%clk 0:01:10]} 36. Kf1 {[%clk 0:00:13]}  Bh3+ {[%clk 0:01:04]} 37. Ke1 {[%clk 0:00:00]}  Nc3+ {[%clk 0:01:04]} 0-1


[Site "https://www.chess.com"]